[Event "Karel Janecek Open 2024"]
[Site "Prague"]
[Date "2024.02.29"]
[Round "2.14"]
[White "Kratochvil, Vit"]
[Black "Quintiliano, Renato R."]
[Result "0-1"]
[ECO "B55"]
[WhiteElo "2177"]
[BlackElo "2493"]
[Annotator "TA"]
[PlyCount "76"]
[EventDate "2024.02.22"]
[EventType "swiss"]
[EventCountry "CZE"]
[SourceTitle "playchess.com"]
[Source "ChessBase"]
[SourceQuality "1"]
[TimeControl "40/5400+30:1800+30"]

{[%evp 11,76,0,39,0,0,-9,-4,-33,0,0,0,0,0,-16,-19,-16,0,-25,0,-24,-13,-49,-43,-81,-92,-179,-189,-176,-187,-250,-264,-418,-388,-354,-372,-608,-581,-657,-656,-841,-821,-774,-685,-1104,-1110,-29982,-29973,-5477,-1320,-2714,-1271,-1323,-1259,-1083,-964,-946,-862,-857,-850,-5377,-1257,-1372,-1372,-1205,-1072,-887,-943]} 1. e4 {[%emt 0:00:04]} c5 {[%emt 0:00:38]} 2. Nf3 {[%emt 0:00:34]} d6 {[%emt 0:00:09]} 3. d4 {[%emt 0:00:16]} cxd4 {[%emt 0:00:06]} 4. Nxd4 {[%emt 0:00:06]} Nf6 {[%emt 0:00:08]} 5. f3 {[%emt 0:00:58]} e5 {[%emt 0:00:13]} 6. Nb3 {[%emt 0:00:28]} d5 {[%emt 0:00:24]} 7. exd5 {[%emt 0:00:34]} Nxd5 {[%emt 0:00:28]} 8. Bb5+ {[%emt 0:11:00]} Nc6 {[%emt 0:00:16]} 9. Qe2 {[%emt 0:02:12] The position is equal.} Bd6 {[%emt 0:05:28]} 10. c4 {[%emt 0:11:32][%cal Bc2c4,Bc4c5][%mdl 32]} Nde7 {[%emt 0:12:22]} 11. c5 {[%emt 0:01:45]} Bc7 {[%emt 0:00:08]} 12. Nc3 {[%emt 0:02:41]} O-O {[%emt 0:10:30]} 13. Bg5 {[%emt 0:06:53]} Be6 {[%emt 0:03:17]} 14. Rd1 {[%emt 0:08:45]} Qc8 {[%emt 0:03:00]} (14... Qe8 $5) 15. Bc4 {[%emt 0:03:51]} Nf5 {[%emt 0:04:43]} 16. Nb5 {[%emt 0:05:09]} Bb8 {[%emt 0:15:32]} 17. g4 {[%emt 0:13:41] [#] Strongly threatening Bxe6.} a6 $1 {[%emt 0:39:00] Black keeps a firm grip on the game.} 18. gxf5 {[%emt 0:23:23]} (18. Nd6 $17 Bxd6 19. cxd6) 18... Bxc4 $19 {[%emt 0:00:00]} (18... axb5 19. Bxe6 fxe6 20. f6 $15) 19. Qxc4 {[%emt 0:00:14]} axb5 {[%emt 0:00:00]} 20. Qg4 {[%emt 0:01:03]} (20. Qd3 {keeps fighting.}) 20... Ra4 {[%emt 0:00:00]} (20... Rxa2 21. Bf6 g6 (21... Rxb2 22. Qxg7#) 22. Qg5 $18) 21. f4 {[%emt 0:04:28]} (21. Qh3 $142 f6 (21... Rxa2 $2 22. Bf6 $18) 22. Be3) 21... exf4 {[%emt 0:00:00]} 22. Bf6 {[%emt 0:00:59][%csl Gf6][%cal Rg4g7] [#]} Re8+ {[%emt 0:00:00]} (22... Rxa2 23. Qxg7#) 23. Kf1 $2 {[%emt 0:00:10]} (23. Kf2 g6 (23... Rxa2 24. Qxg7#) 24. Rhe1) 23... g6 $1 {[%emt 0:00:00]} (23... Rxa2 24. Qxg7#) 24. Rg1 {[%emt 0:00:47][%cal Rf5g6]} Be5 {[%emt 0:00:00] And now ...f3 would win.} (24... Rxa2 25. Qh5 Re5 26. Qh6 $11) 25. Qg5 {[%emt 0:00:50]} Bxf6 {[%emt 0:00:00]} 26. Qxf6 {[%emt 0:00:02]} f3 {[%emt 0:00:00][%cal Oa4f4] aiming for ...Rf4!} 27. Rg3 {[%emt 0:01:00][%cal Rf5g6]} Rf4 {[%emt 0:00:00]} ({Not} 27... Rxa2 28. fxg6 fxg6 (28... hxg6 29. Rxg6+ fxg6 30. Qxg6+ Kf8 31. Qf6+ Kg8 32. Qg6+ Kf8 33. Qf6+ Kg8 34. Qg6+ $11) 29. Rxg6+ hxg6 30. Qxg6+ Kf8 31. Qh6+ Kf7 32. Qf4+ Kg6 33. Rd6+ Re6 34. Qe4+ Kf7 35. Qf5+ Ke7 36. Qg5+ Kf8 37. Qf5+ Ke7 38. Qg5+ Kf7 39. Qf5+ Ke7 $11) 28. Rd5 {[%emt 0:00:32]} f2 {[%emt 0:00:00]} 29. Nd2 {[%emt 0:00:28]} Re1+ {[%emt 0:00:00] Black is clearly winning.} 30. Kg2 {[%emt 0:00:02]} Rg1+ {[%emt 0:00:00]} (30... Qe8 $142 31. Re5 Nxe5 (31... Qxe5 $2 32. Qxe5 Rg1+ 33. Kh3 $19)) 31. Kh3 {[%emt 0:00:05]} f1=Q+ {[%emt 0:00:00]} 32. Nxf1 {[%emt 0:00:04]} Rgxf1 {[%emt 0:00:00]} 33. Rgd3 {[%emt 0:00:47]} R1f3+ {[%emt 0:00:00]} 34. Rxf3 {[%emt 0:00:20]} Rxf3+ {[%emt 0:00:00]} 35. Kg4 {[%emt 0:00:11]} Rxf5 {[%emt 0:00:00]} 36. Rxf5 {[%emt 0:00:05]} Qxf5+ {[%emt 0:00:00]} 37. Qxf5 {[%emt 0:00:04]} gxf5+ {[%emt 0:00:00]} 38. Kxf5 {[%emt 0:00:05]} Kg7 {[%emt 0:01:28] Weighted Error Value: White=1.20/Black=0.57.  Mistake:       	White=4     	---        Inaccurate:     	White=3     	Black=1      OK:         	White=5     	Black=7      Best:        	---       	Black=2      Strong:       	---       	Black=2} 0-1

[Event "Karel Janecek Open 2024"]
[Site "Prague"]
[Date "2024.02.29"]
[Round "2.15"]
[White "Sahithi Varshini M"]
[Black "Csonka, Balasz"]
[Result "1/2-1/2"]
[ECO "B32"]
[WhiteElo "2173"]
[BlackElo "2480"]
[Annotator "RC"]
[PlyCount "98"]
[EventDate "2024.02.22"]
[EventType "swiss"]
[EventCountry "CZE"]
[SourceTitle "playchess.com"]
[Source "ChessBase"]
[SourceQuality "1"]
[TimeControl "40/5400+30:1800+30"]

1. e4 {[%emt 0:03:08]} c5 {[%emt 0:00:04]} 2. Nf3 {[%emt 0:00:35]} Nc6 {[%emt 0:00:07]} 3. d4 {[%emt 0:00:21]} cxd4 {[%emt 0:00:08]} 4. Nxd4 {[%emt 0:00:07]} e5 {[%emt 0:00:05]} 5. Nb5 {[%emt 0:00:36]} d6 {[%emt 0:00:09]} 6. c4 {[%emt 0:03:06]} Be6 {[%emt 0:00:21]} 7. Be3 {[%emt 0:03:04]} Nf6 {[%emt 0:07:02]} 8. f3 {[%emt 0:04:17]} a6 {[%emt 0:08:51]} 9. N5c3 {[%emt 0:00:08]} g6 {[%emt 0:00:11]} 10. Nd2 {[%emt 0:30:53]} Bg7 {[%emt 0:03:48]} 11. Nb3 {[%emt 0:00:35]} O-O {[%emt 0:02:41]} 12. Be2 {[%emt 0:01:03]} Nh5 {[%emt 0:16:43]} 13. O-O {[%emt 0:15:51]} Nf4 {[%emt 0:12:16]} 14. Nd5 {[%emt 0:08:37]} Qg5 {[%emt 0:22:56]} 15. g3 {[%emt 0:02:01]} Nxe2+ {[%emt 0:02:15]} 16. Qxe2 {[%emt 0:00:07]} Qh5 {[%emt 0:00:13]} 17. Nc7 {[%emt 0:06:15]} Rac8 {[%emt 0:07:41]} 18. Bb6 {[%emt 0:05:51]} Nd4 {[%emt 0:04:25]} 19. Qd3 {[%emt 0:01:17]} Bh3 {[%emt 0:03:43]} 20. Rf2 {[%emt 0:00:12]} f5 {[%emt 0:00:46]} 21. Nxd4 {[%emt 0:03:41]} exd4 {[%emt 0:00:14]} 22. Nd5 {[%emt 0:00:48]} fxe4 {[%emt 0:04:01]} 23. Qxe4 {[%emt 0:00:47]} Rce8 {[%emt 0:02:16]} 24. Nf4 {[%emt 0:02:20]} Rxe4 {[%emt 0:00:42]} 25. Nxh5 {[%emt 0:00:05]} Re7 {[%emt 0:00:48]} 26. Nxg7 {[%emt 0:00:30]} Rxg7 {[%emt 0:00:07]} 27. Bxd4 {[%emt 0:00:29]} Rgf7 {[%emt 0:00:09]} 28. f4 {[%emt 0:00:27]} Re8 {[%emt 0:00:53]} 29. Rd2 {[%emt 0:00:18]} Re4 {[%emt 0:00:49]} 30. b3 {[%emt 0:01:28]} Rd7 {[%emt 0:00:27]} 31. a4 {[%emt 0:01:42]} Kf7 {[%emt 0:00:18]} 32. Kf2 {[%emt 0:01:56]} h5 {[%emt 0:00:23]} 33. Re1 {[%emt 0:00:39]} Rxe1 {[%emt 0:00:48]} 34. Kxe1 {[%emt 0:00:05]} Bg4 {[%emt 0:00:33]} 35. Bb6 {[%emt 0:00:45]} Re7+ {[%emt 0:00:33]} 36. Kf2 {[%emt 0:00:07]} Re6 {[%emt 0:00:26]} 37. Be3 {[%emt 0:00:55]} Ke7 {[%emt 0:00:32]} 38. Bd4 {[%emt 0:00:28]} Kd7 {[%emt 0:00:34]} 39. Bb2 {[%emt 0:00:30]} Kc6 {[%emt 0:00:25]} 40. Ba3 {[%emt 0:00:06]} Bf5 {[%emt 0:00:28]} 41. a5 {[%emt 0:32:31]} Be4 {[%emt 0:12:08]} 42. Bb2 {[%emt 0:00:00]} Bf5 {[%emt 0:01:59]} 43. Bd4 {[%emt 0:00:00]} Re4 {[%emt 0:01:55]} 44. Ba7 {[%emt 0:00:00]} Be6 {[%emt 0:03:38]} 45. Re2 {[%emt 0:00:00]} Rxe2+ {[%emt 0:02:00]} 46. Kxe2 {[%emt 0:00:00]} d5 {[%emt 0:00:28]} 47. Kd3 {[%emt 0:00:00]} dxc4+ {[%emt 0:00:06]} 48. bxc4 {[%emt 0:00:00]} Kd6 {[%emt 0:00:20]} 49. Kd4 {[%emt 0:00:00]} Bd7 {[%emt 0:00:12]} 1/2-1/2

[Event "Karel Janecek Open 2024"]
[Site "Prague"]
[Date "2024.02.29"]
[Round "2.16"]
[White "Stoyanov, Tsvetan"]
[Black "Mohylnyi, Stepan"]
[Result "1-0"]
[ECO "A16"]
[WhiteElo "2465"]
[BlackElo "2180"]
[Annotator "TA"]
[PlyCount "51"]
[EventDate "2024.02.22"]
[EventType "swiss"]
[EventCountry "CZE"]
[SourceTitle "playchess.com"]
[Source "ChessBase"]
[SourceQuality "1"]
[TimeControl "40/5400+30:1800+30"]

{[%evp 9,51,43,41,39,49,37,33,39,50,16,64,64,95,81,87,95,85,60,186,199,324,129,164,168,170,111,225,222,265,277,278,286,555,560,1394,1389,1433,1437,1316,1303,29990,29990,29991,29989]} 1. c4 {[%emt 0:00:03]} Nf6 {[%emt 0:00:16][%cal Bg8f6,Bf6d5,Bd5c3][%mdl 32]} 2. Nc3 {[%emt 0:00:13]} d5 {[%emt 0:00:19]} 3. cxd5 {[%emt 0:00:08]} Nxd5 {[%emt 0:00:05]} 4. Nf3 {[%emt 0:00:33]} g6 {[%emt 0:01:24]} 5. h4 {[%emt 0:00:41]} h6 {[%emt 0:03:06]} 6. e4 {[%emt 0:07:07]} Nxc3 {[%emt 0:00:23]} 7. bxc3 {[%emt 0:01:08][%cal Bb2c3,Bc3d4,Bd4d5][%mdl 32]} Bg7 {[%emt 0:01:17]} 8. d4 {[%emt 0:02:22] White is slightly better.} c5 {[%emt 0:02:17]} 9. Be2 {[%emt 0:06:30]} (9. dxc5 Qa5 (9... Bxc3+ 10. Bd2 $14) 10. Bd2 O-O $15 (10... Qxc5 11. Be2 $11) (10... Bxc3 11. Rc1 $11)) 9... cxd4 {[%emt 0:02:25]} (9... Nc6 $11) 10. cxd4 $14 {[%emt 0:00:10]} Nc6 {[%emt 0:00:44]} 11. Be3 {[%emt 0:01:40][%cal Bc1e3,Be3d4,Bd4e5][%mdl 32]} O-O {[%emt 0:18:26] [#]} 12. d5 $1 {[%emt 0:14:40]} Nb4 {[%emt 0:17:41] [#]} (12... Na5 13. Rc1) 13. Bd4 {[%emt 0:01:40] Black must now prevent Bxg7.} Qa5 {[%emt 0:05:44]} (13... e5 $14 14. Bc3 (14. Bxe5 Bxe5 15. Nxe5 Qf6 $15) (14. Nxe5 Qe7 $14) 14... a5) 14. O-O $18 {[%emt 0:03:45]} f5 {[%emt 0:14:42]} (14... Bxd4 $142 15. Nxd4 (15. Qxd4 Nc2 $17) 15... Na6) 15. Ne5 $2 {[%emt 0:11:13]} (15. Rb1 $18 {has better winning chances.} Nxa2 16. d6 (16. Bxg7 Kxg7 17. Qd4+ Rf6 $18)) 15... Bxe5 {[%emt 0:05:02]} 16. Bxe5 {[%emt 0:00:01]} fxe4 {[%emt 0:01:09]} 17. Bc4 {[%emt 0:11:37]} ({White should play} 17. Rc1 $18 {Qd2 would now be deadly.} Nd3 18. Bxd3 exd3 19. Rxc8 (19. Qxd3 Bf5 $18) 19... Raxc8 20. Qg4) 17... Kh7 {[%emt 0:06:32] [#]} (17... Nd3 $16 {keeps fighting.} 18. d6+ (18. Bxd3 Qxd5 19. Bxe4 Qxe5 $14) 18... e6) 18. Qe1 $1 {[%emt 0:10:26]} Qa3 {[%emt 0:08:55][%cal Ob7b5]} 19. Qxe4 {[%emt 0:04:49] Strongly threatening Bd4.} Bf5 {[%emt 0:00:26]} 20. Qe2 {[%emt 0:00:10] And now Bb2 would win.} Na6 $2 {[%emt 0:01:23]} (20... Nd3 21. Bd4 e5 22. dxe6 (22. Bxe5 Nxe5 23. Qxe5 Rae8 $18) 22... Qd6) 21. Rfe1 {[%emt 0:02:06][%cal Bf1e1,Be1e7,Be7g7,Bg7c7][%mdl 32] Threatens to win with Bb2.} Rac8 {[%emt 0:03:19]} 22. Bb2 {[%emt 0:01:01] A strong pair of Bishops.} Qd6 {[%emt 0:01:07]} 23. Qxe7+ {[%emt 0:00:05]} Qxe7 {[%emt 0:00:06]} 24. Rxe7+ {[%emt 0:00:04]} Kg8 {[%emt 0:00:11]} 25. Rg7+ {[%emt 0:00:08]} Kh8 {[%emt 0:00:07]} 26. Rc7+ {[%emt 0:00:09] Weighted Error Value: White=0.20 (precise) /Black=0.88.  Missed win:     	White=1     	---        Mistake:       	White=1     	Black=5      Inaccurate:     	White=1     	Black=2      OK:         	White=6     	Black=4      Best:        	White=3     	Black=2      Strong:       	White=1     	---} 1-0

[Event "Karel Janecek Open 2024"]
[Site "Prague"]
[Date "2024.02.29"]
[Round "2.17"]
[White "Barbosa, Evandro Amorim"]
[Black "Belenkaya, Dina"]
[Result "1-0"]
[ECO "B12"]
[WhiteElo "2491"]
[BlackElo "2202"]
[Annotator "TA"]
[PlyCount "69"]
[EventDate "2024.02.22"]
[EventType "swiss"]
[EventCountry "CZE"]
[SourceTitle "playchess.com"]
[Source "ChessBase"]
[SourceQuality "1"]
[TimeControl "40/5400+30:1800+30"]

{[%evp 9,68,10,5,6,18,13,20,0,19,0,13,0,0,0,41,47,156,68,219,180,258,250,234,239,352,355,380,309,334,328,316,316,340,332,331,349,336,326,438,293,330,329,483,504,534,503,882,858,1094,1056,2043,1941,29994,29995,29995,29996,29997,29998,29998,29999,29999]} 1. e4 {[%emt 0:00:14]} c6 {[%emt 0:00:08]} 2. d4 {[%emt 0:00:35]} d5 {[%emt 0:00:03]} 3. e5 {[%emt 0:00:31]} Bf5 {[%emt 0:00:03]} 4. h4 {[%emt 0:00:30]} h5 {[%emt 0:00:05]} 5. Bd3 {[%emt 0:00:45]} Bxd3 {[%emt 0:00:46]} 6. Qxd3 {[%emt 0:00:10][%cal Oe5e6]} Qa5+ {[%emt 0:00:39]} 7. Nd2 {[%emt 0:00:44][%cal Oe5e6]} e6 {[%emt 0:00:29]} 8. Ngf3 {[%emt 0:00:24] The position is equal.} Nh6 {[%emt 0:05:06]} 9. O-O {[%emt 0:00:14]} Nf5 {[%emt 0:01:30]} 10. a4 {[%emt 0:00:43]} Qa6 {[%emt 0:04:06]} 11. c4 {[%emt 0:01:06][%cal Bc2c4,Bc4d5,Bd5d6][%mdl 32]} c5 {[%emt 0:10:28]} 12. Qb1 {[%emt 0:24:48] aiming for cxd5.} Nc6 {[%emt 0:23:11]} (12... dxc4 $14 13. d5 g6) 13. dxc5 {[%emt 0:04:01]} (13. cxd5 $16 Ncxd4 14. d6) 13... Bxc5 $2 {[%emt 0:09:05] This costs Black the game.} (13... dxc4 $14 14. Ne4 O-O-O) 14. cxd5 {[%emt 0:01:28]} Nb4 {[%emt 0:17:06]} (14... Ncd4 $142) 15. Ne4 $18 {[%emt 0:06:57]} Rc8 {[%emt 0:01:59]} 16. d6 {[%emt 0:00:49] Strongly threatening Rd1.} Kd7 {[%emt 0:08:57]} (16... Qe2 {might work better.} 17. Re1 Qc2) 17. Bd2 {[%emt 0:02:27]} Qb6 {[%emt 0:03:59]} 18. a5 {[%emt 0:13:29]} Qb5 {[%emt 0:00:39]} 19. Qd1 {[%emt 0:02:29] Qb3 is the strong threat.} Nd3 {[%emt 0:04:05]} 20. Bc3 {[%emt 0:03:07]} a6 {[%emt 0:01:32]} 21. Qd2 {[%emt 0:06:04] Rad1 would now be deadly.} Ba7 {[%emt 0:00:36]} 22. Rad1 {[%emt 0:08:41]} Nc5 {[%emt 0:00:17]} 23. Nxc5+ {[%emt 0:00:22]} Qxc5 {[%emt 0:00:59]} 24. Qf4 {[%emt 0:05:23] And now Nd4 would win.} ({Less strong is} 24. Ng5 Qb5 25. Qf4 (25. Nxf7 Rhf8 $14) 25... Qe2 $18) 24... Qc4 {[%emt 0:00:59]} 25. Bd4 {[%emt 0:08:31]} Rhe8 {[%emt 0:01:03]} (25... Qb4 $142 26. Rfe1 Rhf8) 26. g3 {[%emt 0:00:38]} Bxd4 {[%emt 0:02:42]} 27. Nxd4 {[%emt 0:00:31]} Qb4 {[%emt 0:01:06] [#]} (27... Rc6 $142 28. Nxc6 Qxf4 29. Nb8+ (29. gxf4 bxc6 30. Rc1 Nd4 $18) 29... Rxb8 30. gxf4 f6) 28. Qf3 $1 {[%emt 0:01:36]} g6 {[%emt 0:00:18] [#]} (28... Nxd4 29. Qxf7+) 29. Rd3 $1 {[%emt 0:00:46][%cal Bd1d3,Bd3b3,Bb3b8][%mdl 32]} Rc5 {[%emt 0:02:00]} (29... Kd8 30. Nxf5) 30. Rb3 {[%emt 0:02:58]} Qxd4 {[%emt 0:00:21]} 31. Qxb7+ {[%emt 0:00:08] White mates.} Kd8 {[%emt 0:00:04]} 32. Qb6+ {[%emt 0:00:20]} Kd7 {[%emt 0:01:32]} 33. Qa7+ {[%emt 0:00:17]} Kd8 {[%emt 0:00:06]} 34. Rb8+ {[%emt 0:00:09]} Rc8 {[%emt 0:00:02]} 35. Qc7# {[%emt 0:00:06] Weighted Error Value: White=0.21 (precise) /Black=0.55.  Mistake:       	White=1     	Black=6      Inaccurate:     	White=1     	Black=2      OK:         	White=7     	Black=8      Best:        	White=3     	---} 1-0

[Event "Karel Janecek Open 2024"]
[Site "Prague"]
[Date "2024.02.29"]
[Round "2.18"]
[White "Botez, Alexandra"]
[Black "Milner, Romi"]
[Result "1/2-1/2"]
[ECO "D41"]
[WhiteElo "1977"]
[BlackElo "1710"]
[Annotator "RC"]
[PlyCount "93"]
[EventDate "2024.02.22"]
[EventType "swiss"]
[EventCountry "CZE"]
[SourceTitle "playchess.com"]
[Source "ChessBase"]
[SourceQuality "1"]
[TimeControl "40/5400+30:1800+30"]

1. d4 {[%emt 0:00:05]} d5 {[%emt 0:00:02]} 2. c4 {[%emt 0:00:12]} e6 {[%emt 0:00:09]} 3. Nc3 {[%emt 0:00:16]} Nf6 {[%emt 0:00:06]} 4. cxd5 {[%emt 0:00:13]} Nxd5 {[%emt 0:00:11]} 5. e4 {[%emt 0:00:08]} Nxc3 {[%emt 0:00:06]} 6. bxc3 {[%emt 0:00:05]} c5 {[%emt 0:00:33]} 7. Nf3 {[%emt 0:00:59]} cxd4 {[%emt 0:00:08]} 8. cxd4 {[%emt 0:00:11]} Bb4+ {[%emt 0:00:16]} 9. Bd2 {[%emt 0:00:29]} Bxd2+ {[%emt 0:00:28]} 10. Qxd2 {[%emt 0:00:14]} O-O {[%emt 0:01:18]} 11. Bc4 {[%emt 0:00:40]} Nd7 {[%emt 0:11:48]} 12. O-O {[%emt 0:01:19]} b6 {[%emt 0:05:52]} 13. d5 {[%emt 0:00:59]} exd5 {[%emt 0:01:19]} 14. exd5 {[%emt 0:00:58]} Bb7 {[%emt 0:08:00]} 15. Rfe1 {[%emt 0:03:08]} Nf6 {[%emt 0:01:02]} 16. Rad1 {[%emt 0:00:41]} Rc8 {[%emt 0:06:42]} 17. Bb3 {[%emt 0:08:40]} Rc5 {[%emt 0:06:20]} 18. d6 {[%emt 0:14:11]} Bd5 {[%emt 0:12:40]} 19. Qf4 {[%emt 0:05:38]} Bxb3 {[%emt 0:07:18]} 20. axb3 {[%emt 0:00:08]} Nd5 {[%emt 0:01:15]} 21. Qh4 {[%emt 0:30:42]} Qxh4 {[%emt 0:07:40]} 22. Nxh4 {[%emt 0:00:04]} Nc3 {[%emt 0:00:37]} 23. Rd2 {[%emt 0:15:48]} Ne4 {[%emt 0:07:53]} 24. Rd4 {[%emt 0:00:53]} Nf6 {[%emt 0:00:49]} 25. g4 {[%emt 0:03:23]} Rd5 {[%emt 0:01:28]} 26. Rxd5 {[%emt 0:02:06]} Nxd5 {[%emt 0:00:12]} 27. Re5 {[%emt 0:07:05]} Nf6 {[%emt 0:00:51]} 28. Re7 {[%emt 0:00:21]} Nxg4 {[%emt 0:05:02]} 29. Rxa7 {[%emt 0:00:26]} Rd8 {[%emt 0:01:33]} 30. h3 {[%emt 0:02:49]} Nf6 {[%emt 0:00:25]} 31. Nf5 {[%emt 0:00:45]} g6 {[%emt 0:00:18]} 32. Nh6+ {[%emt 0:00:42]} Kg7 {[%emt 0:01:13]} 33. Nxf7 {[%emt 0:02:00]} Rd7 {[%emt 0:00:19]} 34. Rxd7 {[%emt 0:00:04]} Nxd7 {[%emt 0:00:12]} 35. Ng5 {[%emt 0:00:18]} h6 {[%emt 0:00:48]} 36. Ne4 {[%emt 0:00:05]} Kf7 {[%emt 0:00:18]} 37. f3 {[%emt 0:01:04]} Nc5 {[%emt 0:00:51]} 38. b4 {[%emt 0:00:18]} Nb7 {[%emt 0:00:15]} 39. Kf2 {[%emt 0:00:41]} Ke6 {[%emt 0:00:13]} 40. Ke3 {[%emt 0:01:08]} Nxd6 {[%emt 0:00:15]} 41. Nxd6 {[%emt 0:01:22]} Kxd6 {[%emt 0:00:01]} 42. Kd4 {[%emt 0:00:45]} g5 {[%emt 0:05:59]} 43. b5 {[%emt 0:14:38]} h5 {[%emt 0:06:41]} 44. Ke4 {[%emt 0:00:51]} Ke6 {[%emt 0:00:09]} 45. Kd4 {[%emt 0:01:27]} Kd6 {[%emt 0:00:11]} 46. Ke4 {[%emt 0:00:59]} Ke6 {[%emt 0:00:02]} 47. Kd4 {[%emt 0:00:11]} 1/2-1/2

[Event "Karel Janecek Open 2024"]
[Site "Prague"]
[Date "2024.02.29"]
[Round "2.19"]
[White "Botez, Andrea"]
[Black "Bezeyko, Olexander"]
[Result "1/2-1/2"]
[ECO "D00"]
[WhiteElo "1709"]
[BlackElo "1851"]
[Annotator "NA RC"]
[PlyCount "120"]
[EventDate "2024.02.22"]
[EventType "swiss"]
[EventCountry "CZE"]
[SourceTitle "playchess.com"]
[Source "ChessBase"]
[SourceQuality "1"]
[TimeControl "40/5400+30:1800+30"]

1. d4 {[%emt 0:53:14]} d5 {[%emt 0:00:04]} 2. Nc3 {[%emt 0:00:11]} e6 {[%emt 0:00:09]} 3. Bf4 {[%emt 0:00:14]} Bb4 {[%emt 0:00:13]} 4. e3 {[%emt 0:00:22]} Nf6 {[%emt 0:00:43]} 5. Bd3 {[%emt 0:00:15]} c5 {[%emt 0:00:30]} 6. dxc5 {[%emt 0:00:13] D00: 1 d4 d5: Unusual lines.} Nbd7 {[%emt 0:00:31]} 7. Nge2 {[%emt 0:09:34] 7.Nf3 is the modern continuation.} O-O {[%emt 0:09:48]} 8. O-O {[%emt 0:01:23]} Bxc5 {[%emt 0:07:57]} 9. e4 {[%emt 0:03:51]} dxe4 {[%emt 0:25:58]} 10. Nxe4 {[%emt 0:01:43]} Be7 $146 {[%emt 0:02:04]} ({Predecessor:} 10... Nxe4 11. Bxe4 e5 12. Bd2 f5 13. Bd5+ Kh8 14. b4 Bd6 15. c4 Nf6 16. Bc3 Nxd5 17. Qxd5 {1-0 Gordeev,D (1593)-Gaymaleev,R (1274) RUS Cup U09 final 2019 (5)}) 11. N2c3 {[%emt 0:04:25]} Nxe4 {[%emt 0:09:05]} 12. Nxe4 {[%emt 0:08:14]} e5 {[%emt 0:03:52]} 13. Be3 {[%emt 0:23:09]} f5 {[%emt 0:03:20]} 14. Bc4+ {[%emt 0:06:13]} Kh8 {[%emt 0:00:17]} 15. Nd6 {[%emt 0:01:15]} Bxd6 {[%emt 0:01:00]} 16. Qxd6 {[%emt 0:00:07]} f4 {[%emt 0:05:15]} 17. Bc5 {[%emt 0:00:48]} Nxc5 {[%emt 0:08:23]} 18. Qxc5 {[%emt 0:00:09]} Bf5 {[%emt 0:04:51]} 19. Qxe5 {[%emt 0:02:53]} f3 {[%emt 0:03:51]} 20. g3 {[%emt 0:04:07]} Bxc2 {[%emt 0:01:50]} 21. Rac1 {[%emt 0:01:36]} Bg6 {[%emt 0:03:43]} 22. Rfe1 {[%emt 0:10:55]} Qb6 {[%emt 0:04:04]} 23. Bd5 {[%emt 0:06:08]} Rf5 {[%emt 0:01:19]} 24. Qe6 {[%emt 0:00:18]} Qxe6 {[%emt 0:02:11]} 25. Bxe6 {[%emt 0:00:11]} Rb5 {[%emt 0:00:45]} 26. b3 {[%emt 0:00:47]} Ra5 {[%emt 0:00:57]} 27. b4 {[%emt 0:00:52]} Ra4 {[%emt 0:00:30]} 28. Rc4 {[%emt 0:01:29]} Re8 {[%emt 0:00:25]} 29. Rcc1 {[%emt 0:03:49]} Rxb4 {[%emt 0:00:39]} 30. Bd5 {[%emt 0:00:25]} Rxe1+ {[%emt 0:00:34]} 31. Rxe1 Bh5 {[%emt 0:00:20]} 32. Bxf3 {[%emt 0:00:11]} Bg6 {[%emt 0:00:23]} 33. h4 {[%emt 0:00:30]} Rb1 {[%emt 0:00:37]} 34. Kf1 {[%emt 0:01:21]} Bd3+ {[%emt 0:00:32]} 35. Be2 {[%emt 0:00:04]} Bxe2+ {[%emt 0:00:37]} 36. Kxe2 {[%emt 0:00:04]} Rxe1+ {[%emt 0:00:29]} 37. Kxe1 {[%emt 0:00:03]} g6 {[%emt 0:00:27]} 38. Kd2 {[%emt 0:01:11]} Kg7 {[%emt 0:00:05]} 39. g4 {[%emt 0:01:11]} Kf6 {[%emt 0:00:13]} 40. Ke3 {[%emt 0:00:16]} h5 {[%emt 0:01:13]} 41. f3 {[%emt 0:00:41]} Ke5 {[%emt 0:03:23]} 42. a3 {[%emt 0:17:21]} b5 {[%emt 0:05:51]} 43. f4+ {[%emt 0:09:58]} Kf6 {[%emt 0:04:26]} 44. gxh5 {[%emt 0:01:29]} gxh5 {[%emt 0:00:03]} 45. Kd4 {[%emt 0:01:01]} Kf5 {[%emt 0:01:47]} 46. Kc5 {[%emt 0:00:32]} Kg4 {[%emt 0:07:09]} 47. f5 $15 {[%emt 0:02:08]} Kxf5 {[%emt 0:00:04]} 48. Kxb5 {[%emt 0:00:05]} Kg4 {[%emt 0:00:02]} 49. Ka6 {[%emt 0:00:06]} Kxh4 {[%emt 0:00:03]} 50. Kxa7 {[%emt 0:00:07]} Kg5 {[%emt 0:00:17]} 51. Kb8 {[%emt 0:00:07]} h4 {[%emt 0:00:03]} 52. a4 {[%emt 0:00:12]} h3 {[%emt 0:00:01]} 53. a5 {[%emt 0:00:08]} h2 {[%emt 0:00:02]} 54. a6 {[%emt 0:00:04]} h1=Q {[%emt 0:00:03]} 55. a7 {[%emt 0:00:09]} Qh2+ {[%emt 0:00:10]} 56. Kb7 {[%emt 0:00:19]} Qh7+ {[%emt 0:00:21]} 57. Kb8 {[%emt 0:00:13]} Qb1+ {[%emt 0:00:16]} 58. Ka8 {[%emt 0:00:14]} Qe4+ {[%emt 0:00:27]} 59. Kb8 {[%emt 0:00:06]} Qb4+ {[%emt 0:00:03]} 60. Ka8 {[%emt 0:00:07]} Qb1 {[%emt 0:00:31]} 1/2-1/2